fUSD/lending_fUSD_20260606
["ID","MTS","AMOUNT","RATE_DAILY","PERIOD"]
[424291024,1780753865000,-724.35,0.00030137,2]
[424291026,1780753865000,-875.32,0.00030137,2]
[424291032,1780753865000,-150.0,0.00030137,2]
[424291034,1780753865000,-150.0,0.00030137,2]
[424291030,1780753865000,-150.0,0.00030137,2]
[424291028,1780753865000,-2110.0,0.00030137,2]
[424291027,1780753865000,-14184.8,0.00030137,7]
[424291013,1780753865000,-930.02476734,0.00030137,120]
[424291062,1780753865000,-150.0,0.00030137,2]
[424291072,1780753865000,-150.0,0.00030137,2]
[424291070,1780753865000,-150.0,0.00030137,2]
[424291097,1780753865000,-646.084467,0.000302,2]
[424291098,1780753865000,-6744.21738993,0.000302,120]
[424291102,1780753865000,-704.01069,0.000302,4]
[424291103,1780753865000,-1460.868772,0.000302,2]
[424291100,1780753865000,-704.01069,0.000302,5]
[424291101,1780753865000,-704.010692,0.000302,6]
[424291104,1780753865000,-210.32,0.000302,2]
[424291105,1780753865000,-150.08,0.000302,2]
[424291106,1780753865000,-990.71,0.000302,2]
[424291108,1780753865000,-1051.1,0.000302,30]
[424291107,1780753865000,-253.22,0.000302,2]
[424291114,1780753865000,-267.2,0.00030236,30]
[424291115,1780753865000,-4204.8,0.00030239,2]
[424291113,1780753865000,-267.2,0.00030236,30]
[424291116,1780753865000,-161.07028204,0.00030274,30]
[424291109,1780753865000,-172.0,0.00030205,14]
[424291117,1780753865000,-408.0,0.00030316,30]
[424291069,1780753865000,-150.0,0.00030137,2]
[424291118,1780753865000,-3041.2,0.00030316,7]
[424291111,1780753865000,-200.92,0.00030236,30]
[424291112,1780753865000,-200.92,0.00030236,30]
[424291110,1780753865000,-267.19,0.00030236,30]
[424291120,1780753865000,-1092.0,0.00030317,30]
[424291122,1780753865000,-2972.0,0.00030317,30]
[424291123,1780753865000,-699.0,0.00030341,5]
[424291124,1780753865000,-179.97120458,0.00030362,2]
[424291121,1780753865000,-675.0,0.00030317,30]
[424291099,1780753865000,-595.646801,0.000302,3]
[424291096,1780753865000,-15818.19369136,0.000302,2]
[424291119,1780753865000,-936.0,0.00030317,30]
[424291094,1780753865000,-1051.1,0.00030175,30]
[424291095,1780753865000,-1051.1,0.00030188,30]
[424291063,1780753865000,-769.04,0.00030137,2]
[424291065,1780753865000,-150.0,0.00030137,2]
[424291064,1780753865000,-150.0,0.00030137,2]
[424291067,1780753865000,-150.0,0.00030137,2]
[424291066,1780753865000,-150.0,0.00030137,2]
[424291074,1780753865000,-150.0,0.00030137,2]
[424291075,1780753865000,-150.0,0.00030137,2]
[424291076,1780753865000,-150.0,0.00030137,2]
[424291083,1780753865000,-150.0,0.00030137,2]
[424291077,1780753865000,-150.0,0.00030137,2]
[424291078,1780753865000,-150.0,0.00030137,2]
[424291081,1780753865000,-150.0,0.00030137,2]
[424291068,1780753865000,-150.0,0.00030137,2]
[424291073,1780753865000,-150.0,0.00030137,2]
[424291093,1780753865000,-1051.1,0.00030163,30]
[424291082,1780753865000,-150.0,0.00030137,2]
[424291090,1780753865000,-1051.1,0.00030138,30]
[424291089,1780753865000,-150.0,0.00030137,2]
[424291087,1780753865000,-150.0,0.00030137,2]
[424291086,1780753865000,-150.0,0.00030137,2]
[424291088,1780753865000,-150.0,0.00030137,2]
[424291092,1780753865000,-2322.0,0.00030161,3]
[424291085,1780753865000,-150.0,0.00030137,2]
[424291084,1780753865000,-150.0,0.00030137,2]
[424291079,1780753865000,-150.0,0.00030137,2]
[424291080,1780753865000,-150.0,0.00030137,2]
[424291091,1780753865000,-1051.1,0.0003015,30]
[424291154,1780753866000,-628.51885191,0.00030423,2]
[424291164,1780753866000,-151.54,0.00030428,2]
[424291147,1780753866000,-794.93324346,0.0003041,2]
[424291149,1780753866000,-151.0,0.0003041,2]
[424291150,1780753866000,-151.0,0.0003041,2]
[424291148,1780753866000,-587.22029275,0.0003041,2]
[424291153,1780753866000,-667.45808829,0.00030423,2]
[424291152,1780753866000,-615.73398634,0.00030423,2]
[424291158,1780753866000,-655.43761127,0.00030428,2]
[424291156,1780753866000,-581.31230268,0.00030428,2]
[424291157,1780753866000,-573.98852464,0.00030428,2]
[424291161,1780753866000,-734.69672943,0.00030428,2]
[424291155,1780753866000,-702.78029267,0.00030428,2]
[424291160,1780753866000,-754.25160277,0.00030428,2]
[424291163,1780753866000,-151.0,0.00030428,2]
[424291162,1780753866000,-631.43755386,0.00030428,2]
[424291146,1780753866000,-680.9382634,0.0003041,2]
[424291159,1780753866000,-602.53091327,0.00030428,2]
[424291145,1780753866000,-435.46130978,0.00030409,2]
[424291132,1780753866000,-663.0,0.00030403,30]
[424291141,1780753866000,-697.92716934,0.00030409,2]
[424291125,1780753866000,-573.03,0.00030383,2]
[424291126,1780753866000,-185.04,0.00030383,2]
[424291127,1780753866000,-350.38,0.00030384,120]
[424291129,1780753866000,-781.0,0.00030395,30]
[424291128,1780753866000,-205.0,0.00030395,30]
[424291130,1780753866000,-455.0,0.00030403,30]
[424291131,1780753866000,-2857.0,0.00030403,30]
[424291134,1780753866000,-4263.0,0.00030403,30]
[424291144,1780753866000,-643.05525928,0.00030409,2]
[424291136,1780753866000,-1747.0,0.00030403,30]
[424291133,1780753866000,-785.0,0.00030403,30]
[424291138,1780753866000,-674.28377998,0.00030409,2]
[424291142,1780753866000,-613.79599151,0.00030409,2]
[424291137,1780753866000,-185.07,0.00030406,2]
[424291143,1780753866000,-693.35102833,0.00030409,2]
[424291135,1780753866000,-801.0,0.00030403,30]
[424291139,1780753866000,-327.26052862,0.00030409,2]
[424291140,1780753866000,-731.17997882,0.00030409,2]
[424291166,1780753866000,-151.0,0.00030428,2]
[424291151,1780753866000,-180.79,0.00030411,120]
[424291167,1780753866000,-600.14091148,0.00030429,2]
[424291187,1780753866000,-433.8507668,0.00030451,2]
[424291188,1780753866000,-371.20449431,0.00030452,2]
[424291192,1780753866000,-429.07929123,0.00030462,2]
[424291194,1780753866000,-435.74656952,0.00030483,2]
[424291195,1780753866000,-426.82660578,0.00030483,2]
[424291193,1780753866000,-405.25226507,0.00030465,2]
[424291199,1780753866000,-20119.41091207,0.0003049,7]
[424291197,1780753866000,-2261.17854157,0.0003049,7]
[424291191,1780753866000,-679.19863847,0.00030462,2]
[424291198,1780753866000,-188874.06912965,0.0003049,7]
[424291200,1780753866000,-25008.78919087,0.0003049,7]
[424291201,1780753866000,-9873.32378236,0.0003049,7]
[424291203,1780753866000,-152.0,0.00030518,6]
[424291205,1780753866000,-650.66728218,0.00030565,2]
[424291204,1780753866000,-1162.78,0.00030521,2]
[424291206,1780753866000,-405.48865826,0.00030565,2]
[424291207,1780753866000,-632.3660045,0.0003057,2]
[424291165,1780753866000,-151.0,0.00030428,2]
[424291196,1780753866000,-6483.08849942,0.0003049,7]
[424291190,1780753866000,-229.80171355,0.00030462,2]
[424291202,1780753866000,-1011.69,0.00030491,7]
[424291185,1780753866000,-200.0,0.00030437,2]
[424291189,1780753866000,-390.30147377,0.00030452,2]
[424291168,1780753866000,-809.97160728,0.00030429,2]
[424291170,1780753866000,-736.38229665,0.00030431,2]
[424291169,1780753866000,-715.13537653,0.00030429,2]
[424291174,1780753866000,-525.92510406,0.00030431,2]
[424291173,1780753866000,-836.0170668,0.00030431,2]
[424291176,1780753866000,-620.31042074,0.00030431,2]
[424291175,1780753866000,-758.6395048,0.00030431,2]
[424291179,1780753866000,-737.45726924,0.00030431,2]
[424291171,1780753866000,-600.6544775,0.00030431,2]
[424291172,1780753866000,-655.84391139,0.00030431,2]
[424291177,1780753866000,-525.01090578,0.00030431,2]
[424291178,1780753866000,-603.28566937,0.00030431,2]
[424291181,1780753866000,-268.41921305,0.00030437,2]
[424291183,1780753866000,-200.0,0.00030437,2]
[424291182,1780753866000,-200.0,0.00030437,2]
[424291184,1780753866000,-1356.73267512,0.00030437,2]
[424291180,1780753866000,-734.62937219,0.00030437,2]
[424291186,1780753866000,-160.55911995,0.0003045,2]
[424291250,1780753867000,-168.1029797,0.0003057,2]
[424291246,1780753867000,-498.02403117,0.0003057,2]
[424291245,1780753867000,-168.98283828,0.0003057,2]
[424291247,1780753867000,-755.74643964,0.0003057,2]
[424291248,1780753867000,-568.70035154,0.0003057,2]
[424291242,1780753867000,-493.75709593,0.0003057,2]
[424291249,1780753867000,-170.32151872,0.0003057,2]
[424291243,1780753867000,-161.71780045,0.0003057,2]
[424291244,1780753867000,-742.82060264,0.0003057,2]
[424291251,1780753867000,-416.15364245,0.0003057,2]
[424291240,1780753867000,-723.21284892,0.0003057,2]
[424291241,1780753867000,-443.0997574,0.0003057,2]
[424291252,1780753867000,-1723.35311833,0.0003057,2]
[424291259,1780753867000,-451.01315914,0.0003057,2]
[424291253,1780753867000,-620.73495559,0.0003057,2]
[424291265,1780753867000,-676.51545523,0.0003057,2]
[424291264,1780753867000,-170.97405169,0.0003057,2]
[424291255,1780753867000,-1848.12833793,0.0003057,2]
[424291261,1780753867000,-466.42737669,0.0003057,2]
[424291256,1780753867000,-571.41027411,0.0003057,2]
[424291258,1780753867000,-572.99162094,0.0003057,2]
[424291262,1780753867000,-165.72187986,0.0003057,2]
[424291263,1780753867000,-615.57490845,0.0003057,2]
[424291260,1780753867000,-712.88008676,0.0003057,2]
[424291266,1780753867000,-515.51993097,0.0003057,2]
[424291268,1780753867000,-160.67006026,0.0003057,2]
[424291237,1780753867000,-590.61351801,0.0003057,2]
[424291254,1780753867000,-160.45104451,0.0003057,2]
[424291235,1780753867000,-160.93632549,0.0003057,2]
[424291220,1780753867000,-1388.80484847,0.0003057,2]
[424291238,1780753867000,-178.30960949,0.0003057,2]
[424291215,1780753867000,-945.89770757,0.0003057,2]
[424291208,1780753867000,-310.69195422,0.0003057,2]
[424291213,1780753867000,-466.75281567,0.0003057,2]
[424291212,1780753867000,-169.04721995,0.0003057,2]
[424291211,1780753867000,-666.37471682,0.0003057,2]
[424291209,1780753867000,-687.89614231,0.0003057,2]
[424291214,1780753867000,-537.83831172,0.0003057,2]
[424291210,1780753867000,-685.5506822,0.0003057,2]
[424291216,1780753867000,-212.99678188,0.0003057,2]
[424291277,1780753867000,-161.07028204,0.00030575,30]
[424291219,1780753867000,-402.4992057,0.0003057,2]
[424291218,1780753867000,-330.18913245,0.0003057,2]
[424291221,1780753867000,-164.60051743,0.0003057,2]
[424291233,1780753867000,-384.91173698,0.0003057,2]
[424291222,1780753867000,-713.81930901,0.0003057,2]
[424291223,1780753867000,-168.46234524,0.0003057,2]
[424291217,1780753867000,-401.15321097,0.0003057,2]
[424291224,1780753867000,-165.14091316,0.0003057,2]
[424291225,1780753867000,-346.99088569,0.0003057,2]
[424291227,1780753867000,-615.66620615,0.0003057,2]
[424291229,1780753867000,-472.84308204,0.0003057,2]
[424291239,1780753867000,-169.02355587,0.0003057,2]
[424291228,1780753867000,-450.70730865,0.0003057,2]
[424291232,1780753867000,-527.3441939,0.0003057,2]
[424291231,1780753867000,-411.96414744,0.0003057,2]
[424291230,1780753867000,-771.44794506,0.0003057,2]
[424291236,1780753867000,-647.40474959,0.0003057,2]
[424291234,1780753867000,-481.88658962,0.0003057,2]
[424291226,1780753867000,-805.57072819,0.0003057,2]
[424291267,1780753867000,-534.00751399,0.0003057,2]
[424291257,1780753867000,-727.38050432,0.0003057,2]
[424291271,1780753867000,-795.98343463,0.0003057,2]
[424291294,1780753867000,-500.0,0.00030796,2]
[424291304,1780753867000,-1732.82,0.00030952,2]
[424291307,1780753867000,-767.24498939,0.00030988,2]
[424291306,1780753867000,-842.85472498,0.00030988,2]
[424291308,1780753867000,-866.68878541,0.00030988,2]
[424291311,1780753867000,-351.13159668,0.00031,5]
[424291310,1780753867000,-993.66655432,0.0003099,2]
[424291309,1780753867000,-851.17282924,0.0003099,2]
[424291313,1780753867000,-4783.00363212,0.00031,2]
[424291312,1780753867000,-167.90310605,0.00031,14]
[424291314,1780753867000,-2000.0,0.00031,3]
[424291315,1780753867000,-215.80795776,0.00031,30]
[424291316,1780753867000,-769.66748293,0.00031003,2]
[424291317,1780753867000,-878.47536583,0.00031008,2]
[424291319,1780753867000,-753.16364158,0.00031008,2]
[424291326,1780753867000,-948.299381,0.0003101,2]
[424291321,1780753867000,-918.37091178,0.00031008,2]
[424291322,1780753867000,-789.29694232,0.00031008,2]
[424291323,1780753867000,-750.17613935,0.00031008,2]
[424291327,1780753867000,-775.38802592,0.0003101,2]
[424291324,1780753867000,-750.81809688,0.0003101,2]
[424291318,1780753867000,-819.29701409,0.00031008,2]
[424291320,1780753867000,-942.81450346,0.00031008,2]
[424291328,1780753867000,-754.10708671,0.0003101,2]
[424291329,1780753867000,-921.82158654,0.0003101,2]
[424291325,1780753867000,-1045.0213335,0.0003101,2]
[424291331,1780753867000,-250.0,0.00031045,7]
[424291269,1780753867000,-1619.9168547,0.0003057,2]
[424291330,1780753867000,-150.0,0.00031011,2]
[424291305,1780753867000,-5000.0,0.00030974,30]
[424291302,1780753867000,-204.69,0.000309,4]
[424291332,1780753867000,-200.0,0.00031049,2]
[424291297,1780753867000,-150.0,0.00030875,2]
[424291303,1780753867000,-3414.96283955,0.00030931,2]
[424291278,1780753867000,-349.48705949,0.00030588,2]
[424291275,1780753867000,-464.2251992,0.0003057,2]
[424291272,1780753867000,-414.69461133,0.0003057,2]
[424291274,1780753867000,-647.3679293,0.0003057,2]
[424291273,1780753867000,-734.25749035,0.0003057,2]
[424291276,1780753867000,-160.0523769,0.0003057,2]
[424291280,1780753867000,-668.95795008,0.00030588,2]
[424291291,1780753867000,-200.0,0.00030742,2]
[424291292,1780753867000,-200.0,0.00030742,2]
[424291290,1780753867000,-200.0,0.00030742,2]
[424291279,1780753867000,-615.41586543,0.00030588,2]
[424291281,1780753867000,-736.94181572,0.00030588,2]
[424291284,1780753867000,-2110.0,0.00030637,2]
[424291270,1780753867000,-315.69646608,0.0003057,2]
[424291285,1780753867000,-193.36365148,0.00030692,2]
[424291288,1780753867000,-911.16321055,0.000307,120]
[424291296,1780753867000,-1638.72083584,0.0003084,2]
[424291295,1780753867000,-350.0,0.00030812,17]
[424291300,1780753867000,-177.11081035,0.00030875,2]
[424291301,1780753867000,-699.0,0.00030875,6]
[424291293,1780753867000,-420.96,0.00030784,7]
[424291299,1780753867000,-159.24496948,0.00030875,2]
[424291298,1780753867000,-150.0,0.00030875,2]
[424291282,1780753867000,-3414.96283955,0.00030607,2]
[424291289,1780753867000,-179.97120458,0.00030709,2]
[424291283,1780753867000,-350.38,0.0003063,120]
[424291287,1780753867000,-1373.7,0.000307,14]
[424291286,1780753867000,-624.78243561,0.00030692,2]
[424291374,1780753868000,-150.0,0.00031233,2]
[424291372,1780753868000,-481.63,0.00031231,2]
[424291373,1780753868000,-643.97,0.00031232,2]
[424291375,1780753868000,-300.0,0.00031233,14]
[424291365,1780753868000,-1000.0,0.000312,7]
[424291367,1780753868000,-481.98,0.00031228,2]
[424291366,1780753868000,-184.98,0.00031228,2]
[424291363,1780753868000,-251.432389,0.000312,4]
[424291369,1780753868000,-151.0,0.00031231,2]
[424291378,1780753868000,-396.78,0.0003125,2]
[424291358,1780753868000,-921.17726965,0.0003117,2]
[424291371,1780753868000,-151.0,0.00031231,2]
[424291382,1780753868000,-1373.7,0.000313,14]
[424291384,1780753868000,-408.0,0.00031316,30]
[424291376,1780753868000,-151.0,0.0003125,2]
[424291380,1780753868000,-572.68,0.00031257,2]
[424291379,1780753868000,-3414.96283955,0.00031255,2]
[424291381,1780753868000,-723.5,0.00031279,60]
[424291392,1780753868000,-200.0,0.0003136,2]
[424291386,1780753868000,-1092.0,0.00031317,30]
[424291388,1780753868000,-2972.0,0.00031317,30]
[424291383,1780753868000,-750.0,0.00031304,5]
[424291385,1780753868000,-936.0,0.00031317,30]
[424291389,1780753868000,-3414.96283955,0.00031331,2]
[424291393,1780753868000,-205.0,0.00031395,30]
[424291370,1780753868000,-151.0,0.00031231,2]
[424291387,1780753868000,-675.0,0.00031317,30]
[424291377,1780753868000,-151.0,0.0003125,2]
[424291362,1780753868000,-703.811776,0.000312,4]
[424291356,1780753868000,-769.26983178,0.0003117,2]
[424291364,1780753868000,-355.078575,0.000312,4]
[424291391,1780753868000,-200.0,0.0003136,2]
[424291341,1780753868000,-832.96839602,0.00031152,2]
[424291342,1780753868000,-1182.37213446,0.00031152,2]
[424291343,1780753868000,-1736.00606059,0.00031152,2]
[424291339,1780753868000,-859.87017789,0.00031152,2]
[424291336,1780753868000,-3414.96283955,0.00031065,2]
[424291333,1780753868000,-200.0,0.00031049,2]
[424291334,1780753868000,-200.0,0.00031049,2]
[424291335,1780753868000,-179.97120458,0.00031057,2]
[424291337,1780753868000,-164.0,0.0003107,3]
[424291338,1780753868000,-1773.03,0.00031137,2]
[424291340,1780753868000,-856.93835275,0.00031152,2]
[424291344,1780753868000,-1006.96341024,0.00031152,2]
[424291368,1780753868000,-184.9,0.00031229,2]
[424291346,1780753868000,-809.25593699,0.00031152,2]
[424291347,1780753868000,-944.68304955,0.00031152,2]
[424291345,1780753868000,-964.30993133,0.00031152,2]
[424291350,1780753868000,-2310.16042242,0.00031152,2]
[424291354,1780753868000,-917.82186294,0.00031152,2]
[424291349,1780753868000,-775.91869449,0.00031152,2]
[424291351,1780753868000,-909.22563041,0.00031152,2]
[424291353,1780753868000,-2024.89606838,0.00031152,2]
[424291352,1780753868000,-769.46863557,0.00031152,2]
[424291355,1780753868000,-3414.96283955,0.00031168,2]
[424291357,1780753868000,-836.1974376,0.0003117,2]
[424291360,1780753868000,-330.005011,0.000312,4]
[424291359,1780753868000,-598.64739,0.000312,4]
[424291361,1780753868000,-373.806763,0.000312,4]
[424291348,1780753868000,-2154.19139791,0.00031152,2]
[424291390,1780753868000,-200.0,0.0003136,2]
[424291448,1780753868000,-3414.96283955,0.00031902,2]
[424291396,1780753868000,-3414.96283955,0.000314,2]
[424291427,1780753868000,-3414.96283955,0.00031729,2]
[424291425,1780753868000,-3414.96283955,0.00031681,2]
[424291426,1780753868000,-176.0,0.00031716,14]
[424291429,1780753868000,-3414.96283955,0.00031775,2]
[424291433,1780753868000,-1040.02654249,0.00031858,2]
[424291441,1780753868000,-947.15633079,0.00031878,2]
[424291432,1780753868000,-14184.8,0.00031857,14]
[424291443,1780753868000,-1137.9592572,0.0003188,2]
[424291442,1780753868000,-900.98171625,0.0003188,2]
[424291435,1780753868000,-3414.96283955,0.00031861,2]
[424291434,1780753868000,-1021.40739509,0.00031859,2]
[424291438,1780753868000,-1054.170439,0.00031878,2]
[424291439,1780753868000,-983.1564169,0.00031878,2]
[424291428,1780753868000,-179.97120458,0.00031752,2]
[424291440,1780753868000,-1102.04509414,0.00031878,2]
[424291444,1780753868000,-930.46563111,0.0003188,2]
[424291446,1780753868000,-1106.18590385,0.0003188,2]
[424291445,1780753868000,-904.92850406,0.0003188,2]
[424291447,1780753868000,-1373.7,0.000319,14]
[424291450,1780753868000,-158.10903582,0.00031926,2]
[424291449,1780753868000,-1324.74942919,0.0003191,2]
[424291454,1780753868000,-5000.0,0.00031991,2]
[424291451,1780753868000,-3414.96283955,0.00031942,2]
[424291452,1780753868000,-699.0,0.00031943,7]
[424291453,1780753868000,-3414.96283955,0.00031981,2]
[424291455,1780753868000,-5000.0,0.00031991,2]
[424291394,1780753868000,-781.0,0.00031395,30]
[424291456,1780753868000,-5000.0,0.00031991,2]
[424291437,1780753868000,-864.78058953,0.00031873,2]
[424291431,1780753868000,-152.0,0.00031857,7]
[424291436,1780753868000,-693.39197629,0.00031873,2]
[424291423,1780753868000,-3414.96283955,0.00031631,2]
[424291398,1780753868000,-2857.0,0.00031403,30]
[424291430,1780753868000,-3414.96283955,0.00031819,2]
[424291402,1780753868000,-801.0,0.00031403,30]
[424291403,1780753868000,-1747.0,0.00031403,30]
[424291406,1780753868000,-3528.58205906,0.0003143,4]
[424291395,1780753868000,-1000.0,0.000314,120]
[424291397,1780753868000,-455.0,0.00031403,30]
[424291405,1780753868000,-699.0,0.00031409,6]
[424291401,1780753868000,-4263.0,0.00031403,30]
[424291400,1780753868000,-785.0,0.00031403,30]
[424291399,1780753868000,-663.0,0.00031403,30]
[424291408,1780753868000,-3414.96283955,0.00031464,2]
[424291418,1780753868000,-150.0,0.0003161,2]
[424291407,1780753868000,-3807.23,0.00031444,30]
[424291404,1780753868000,-179.97120458,0.00031405,2]
[424291409,1780753868000,-234.97453491,0.00031483,7]
[424291424,1780753868000,-150.0,0.00031644,2]
[424291419,1780753868000,-150.0,0.0003161,2]
[424291421,1780753868000,-150.0,0.0003161,2]
[424291411,1780753868000,-150.0,0.000315,2]
[424291417,1780753868000,-150.0,0.0003161,2]
[424291412,1780753868000,-368.20250843,0.00031507,30]
[424291416,1780753868000,-150.0,0.0003161,2]
[424291422,1780753868000,-150.0,0.0003161,2]
[424291413,1780753868000,-3414.96283955,0.00031523,2]
[424291415,1780753868000,-150.0,0.0003161,2]
[424291414,1780753868000,-3414.96283955,0.00031579,2]
[424291420,1780753868000,-150.0,0.0003161,2]
[424291410,1780753868000,-201.02373753,0.000315,2]
[424291489,1780753869000,-700.0,0.00032,2]
[424291501,1780753869000,-931.10243339,0.00032025,2]
[424291498,1780753869000,-2083.20727271,0.00032025,2]
[424291496,1780753869000,-999.56207523,0.00032025,2]
[424291497,1780753869000,-1418.84656136,0.00032025,2]
[424291499,1780753869000,-1157.17191759,0.00032025,2]
[424291494,1780753869000,-1031.84421346,0.00032025,2]
[424291488,1780753869000,-4241.46,0.00032,7]
[424291487,1780753869000,-1000.0,0.00032,120]
[424291486,1780753869000,-203.470482,0.00032,5]
[424291502,1780753869000,-2772.1925069,0.00032025,2]
[424291492,1780753869000,-3414.96283955,0.00032019,2]
[424291495,1780753869000,-1028.32602331,0.00032025,2]
[424291503,1780753869000,-1091.07075649,0.00032025,2]
[424291509,1780753869000,-576.7,0.00032053,2]
[424291506,1780753869000,-923.12379814,0.00032043,2]
[424291500,1780753869000,-2585.02967749,0.00032025,2]
[424291504,1780753869000,-923.36236268,0.00032025,2]
[424291505,1780753869000,-2429.87528205,0.00032025,2]
[424291508,1780753869000,-1105.41272357,0.00032043,2]
[424291519,1780753869000,-185.06,0.00032072,2]
[424291511,1780753869000,-644.0,0.00032053,2]
[424291510,1780753869000,-482.15,0.00032053,2]
[424291512,1780753869000,-575.26,0.00032054,2]
[424291513,1780753869000,-185.04,0.00032054,2]
[424291518,1780753869000,-572.95,0.00032072,2]
[424291516,1780753869000,-185.04,0.00032072,2]
[424291484,1780753869000,-653.15054782,0.00032,120]
[424291507,1780753869000,-1003.43692512,0.00032043,2]
[424291490,1780753869000,-199.0,0.00032,7]
[424291457,1780753869000,-5000.0,0.00031991,2]
[424291485,1780753869000,-516.05266007,0.00032,120]
[424291514,1780753869000,-482.15,0.00032054,2]
[424291466,1780753869000,-419.67287625,0.00032,120]
[424291468,1780753869000,-1534.78056355,0.00032,120]
[424291467,1780753869000,-315.13166362,0.00032,120]
[424291469,1780753869000,-299.79843849,0.00032,120]
[424291465,1780753869000,-680.15891451,0.00032,120]
[424291459,1780753869000,-1764.21729944,0.00032,2]
[424291464,1780753869000,-674.42676518,0.00032,120]
[424291460,1780753869000,-41448.01030234,0.00032,10]
[424291461,1780753869000,-467.0,0.00032,5]
[424291458,1780753869000,-5000.0,0.00031991,2]
[424291462,1780753869000,-1878.49,0.00032,7]
[424291463,1780753869000,-1106.90856909,0.00032,120]
[424291491,1780753869000,-2322.0,0.00032015,3]
[424291470,1780753869000,-936.67413744,0.00032,120]
[424291471,1780753869000,-1522.79005852,0.00032,120]
[424291480,1780753869000,-371.64515471,0.00032,120]
[424291481,1780753869000,-510.28690525,0.00032,120]
[424291475,1780753869000,-278.76042059,0.00032,120]
[424291474,1780753869000,-1744.58108056,0.00032,120]
[424291476,1780753869000,-1490.259808,0.00032,120]
[424291472,1780753869000,-610.22600591,0.00032,120]
[424291477,1780753869000,-537.86183585,0.00032,120]
[424291473,1780753869000,-419.16761669,0.00032,120]
[424291478,1780753869000,-687.13787715,0.00032,120]
[424291483,1780753869000,-1558.37932943,0.00032,120]
[424291482,1780753869000,-1717.55971657,0.00032,120]
[424291493,1780753869000,-151.0,0.00032024,2]
[424291479,1780753869000,-1023.72586461,0.00032,120]
[424291515,1780753869000,-3414.96283955,0.00032055,2]
[424291564,1780753869000,-383.54,0.000324,30]
[424291520,1780753869000,-575.26,0.00032072,2]
[424291550,1780753869000,-699.951217,0.00032329,7]
[424291552,1780753869000,-150.0,0.00032345,2]
[424291553,1780753869000,-150.0,0.00032345,2]
[424291555,1780753869000,-150.0,0.00032345,2]
[424291554,1780753869000,-150.0,0.00032345,2]
[424291568,1780753869000,-785.0,0.00032403,30]
[424291559,1780753869000,-3414.96283955,0.00032351,2]
[424291567,1780753869000,-663.0,0.00032403,30]
[424291569,1780753869000,-4263.0,0.00032403,30]
[424291560,1780753869000,-3414.96283955,0.00032381,2]
[424291558,1780753869000,-150.0,0.00032345,2]
[424291561,1780753869000,-205.0,0.00032395,30]
[424291566,1780753869000,-2857.0,0.00032403,30]
[424291549,1780753869000,-699.951217,0.00032329,7]
[424291565,1780753869000,-455.0,0.00032403,30]
[424291570,1780753869000,-801.0,0.00032403,30]
[424291572,1780753869000,-3414.96283955,0.0003241,2]
[424291575,1780753869000,-179.97120458,0.00032448,2]
[424291574,1780753869000,-3414.96283955,0.00032439,2]
[424291579,1780753869000,-3414.96283955,0.00032495,2]
[424291573,1780753869000,-707.58,0.0003242,60]
[424291578,1780753869000,-699.0,0.00032477,7]
[424291576,1780753869000,-6600.0,0.00032463,7]
[424291577,1780753869000,-3414.96283955,0.00032467,2]
[424291571,1780753869000,-1747.0,0.00032403,30]
[424291580,1780753869000,-1373.7,0.000325,14]
[424291581,1780753869000,-183.91632608,0.00032503,10]
[424291517,1780753869000,-482.15,0.00032072,2]
[424291563,1780753869000,-397.5,0.00032396,30]
[424291548,1780753869000,-699.951217,0.00032329,7]
[424291562,1780753869000,-781.0,0.00032395,30]
[424291556,1780753869000,-150.0,0.00032345,2]
[424291547,1780753869000,-699.951217,0.00032329,7]
[424291524,1780753869000,-179.97120458,0.000321,2]